fUST/lending_fUST_20251119
["ID","MTS","AMOUNT","RATE_DAILY","PERIOD"]
[394419880,1763554891652,-534.59055445,0.0001297,2]
[394419881,1763554893544,506.69,0.00032877,120]
[394419882,1763554893737,-151.56386386,0.0001297,2]
[394419883,1763554893759,-6.55032611,0.00013101,2]
[394419884,1763554899434,200.0,0.00032,120]
[394419885,1763554906024,-99.4154989,0.00013101,2]
[394419886,1763554906048,-80.87476107,0.00013129,2]
[394419887,1763554908994,-212.01628968,0.00013129,2]
[394419888,1763554911494,-100.70994925,0.00013129,2]
[394419889,1763554911515,-67.35767858,0.00013129,2]
[394419890,1763554916754,-179.17808055,0.00013129,2]
[394419891,1763554916779,-69.77962219,0.00013129,2]
[394419892,1763554920475,-156.24735338,0.00012998,2]
[394419893,1763554920500,-5.52523494,0.00013129,2]
[394419894,1763554942492,238.23546785,0.00015825,7]
[394419895,1763554956675,319.0,0.00032,120]
[394419896,1763555112809,1903.76088835,0.0001566,7]
[394419901,1763555169140,-41.06846429,0.00013129,2]
[394419902,1763555169164,-185.42548979,0.00013272,2]
[394419903,1763555169186,-73.50604592,0.00013272,2]
[394419904,1763555172860,-310.15941068,0.00013272,2]
[394419906,1763555175385,-175.52271418,0.00013272,2]
[394419908,1763555178530,-167.38889056,0.00013272,2]
[394419909,1763555182372,-188.46558166,0.00013139,2]
[394419910,1763555183410,-698.44010648,0.00013139,2]
[394419911,1763555183463,-8227.3975507,0.00013272,2]
[394419912,1763555183639,-2342.59563655,0.00013272,2]
[394419913,1763555183670,-1200.0,0.00013298,2]
[394419914,1763555187802,300.0,0.00013236,2]
[394419915,1763555196566,300.0,0.00013236,2]
[394419916,1763555199049,-300.0,0.0001337,2]
[394419917,1763555204436,355.85447222,0.00013237,2]
[394419918,1763555212630,9044.15552778,0.00013237,2]
[394419919,1763555212652,2039.71804724,0.00013237,2]
[394419920,1763555220971,7824.65796905,0.00013237,2]
[394419921,1763555223755,300.0,0.0001337,2]
[394419922,1763555236207,10000.0,0.00013237,2]
[394419933,1763555244035,0.01,0.00013237,2]
[394419934,1763555244059,9999.99,0.00013237,2]
[394419935,1763555244848,806.93340352,0.00015794,7]
[394419936,1763555259226,0.02,0.00013237,2]
[394419937,1763555259251,9999.98,0.00013237,2]
[394419938,1763555267021,0.03,0.00013237,2]
[394419939,1763555267043,9999.97,0.00013237,2]
[394419940,1763555268360,0.04,0.0001337,2]
[394419941,1763555268382,1199.96,0.0001337,2]
[394419942,1763555282842,8800.05,0.00013237,2]
[394419943,1763555282865,937.18296132,0.00013237,2]
[394419944,1763555288169,778.8382241,0.000125,2]
[394419945,1763555290715,300.0,0.00013236,2]
[394419946,1763555306506,300.0,0.00013236,2]
[394419947,1763555314332,300.0,0.00013236,2]
[394419953,1763555329675,300.0,0.00013236,2]
[394419954,1763555332444,8021.1717759,0.00013227,2]
[394419955,1763555332467,10000.01,0.00013227,2]
[394419956,1763555337875,-3584.79678192,0.00013095,2]
[394419957,1763555338013,-2830.41643616,0.00013095,2]
[394419958,1763555341532,-401.63558453,0.00013227,2]
[394419959,1763555349236,-243.54353299,0.00013226,2]
[394419960,1763555350151,-56.45646701,0.00013226,2]
[394419961,1763555350173,-12538.18052262,0.00013227,2]
[394419962,1763555350744,-231.24014149,0.00013227,2]
[394419963,1763555371032,-411.66952957,0.00013095,2]
[394419964,1763555374576,-315.0943809,0.00013095,2]
[394419965,1763555376566,-464.74972944,0.00012964,2]
[394419966,1763555376587,-7.51204313,0.00013095,2]
[394419967,1763555418398,999.0,0.0001237,2]
[394420006,1763555433374,-142.14330541,0.00013095,2]
[394420007,1763555433383,-300.0,0.00013226,2]
[394420008,1763555433393,-520.51313518,0.00013226,2]
[394420009,1763555433419,-679.48686482,0.00013226,2]
[394420010,1763555433428,-300.0,0.00013226,2]
[394420011,1763555433438,-300.0,0.00013226,2]
[394420012,1763555433447,-46.51313518,0.00013226,2]
[394420035,1763555438032,-253.48686482,0.00013226,2]
[394420037,1763555438041,-127.40815881,0.00013226,2]
[394420039,1763555438053,-372.59184119,0.00013226,2]
[394420041,1763555438062,-500.0,0.00013226,2]
[394420043,1763555438071,-245.32369797,0.00013226,2]
[394420045,1763555438082,-254.67630203,0.00013226,2]
[394420047,1763555438091,-500.0,0.00013226,2]
[394420049,1763555438100,-459.86260006,0.00013226,2]
[394420051,1763555438113,-40.13739994,0.00013226,2]
[394420053,1763555438123,-500.0,0.00013226,2]
[394420055,1763555438132,-500.0,0.00013226,2]
[394420058,1763555438141,-600.00000005,0.00013226,2]
[394420060,1763555438151,-500.0,0.00013226,2]
[394420061,1763555438160,-500.0,0.00013226,2]
[394420064,1763555438170,-500.0,0.00013226,2]
[394420065,1763555438180,-365.0,0.00013226,2]
[394420068,1763555438190,-500.0,0.00013226,2]
[394420070,1763555438199,-500.0,0.00013226,2]
[394420071,1763555438209,-500.0,0.00013226,2]
[394420074,1763555438219,-500.0,0.00013226,2]
[394420076,1763555438228,-500.0,0.00013226,2]
[394420077,1763555438238,-500.0,0.00013226,2]
[394420079,1763555438247,-521.503642,0.00013226,2]
[394420081,1763555438256,-500.0,0.00013226,2]
[394420083,1763555438266,-500.0,0.00013226,2]
[394420085,1763555438275,-500.0,0.00013226,2]
[394420087,1763555438285,-500.0,0.00013226,2]
[394420089,1763555438294,-500.0,0.00013226,2]
[394420091,1763555438305,-500.0,0.00013226,2]
[394420093,1763555438314,-500.0,0.00013226,2]
[394420095,1763555438324,-500.0,0.00013226,2]
[394420097,1763555438333,-500.0,0.00013226,2]
[394420098,1763555438342,-500.0,0.00013226,2]
[394420100,1763555438352,-288.43642608,0.00013226,2]
[394420102,1763555438362,-500.0,0.00013226,2]
[394420104,1763555438372,-500.0,0.00013226,2]
[394420106,1763555438382,-500.0,0.00013226,2]
[394420109,1763555438391,-500.0,0.00013226,2]
[394420111,1763555438402,-500.0,0.00013226,2]
[394420113,1763555438412,-500.0,0.00013226,2]
[394420115,1763555438422,-500.0,0.00013226,2]
[394420117,1763555438432,-500.0,0.00013226,2]
[394420119,1763555438441,-500.0,0.00013226,2]
[394420121,1763555438451,-500.0,0.00013226,2]
[394420123,1763555438461,-500.0,0.00013226,2]
[394420125,1763555438470,-500.0,0.00013226,2]
[394420127,1763555438479,-500.0,0.00013226,2]
[394420129,1763555438489,-500.0,0.00013226,2]
[394420131,1763555438499,-500.0,0.00013226,2]
[394420133,1763555438508,-500.0,0.00013226,2]
[394420135,1763555438518,-500.0,0.00013226,2]
[394420137,1763555438527,-500.0,0.00013226,2]
[394420139,1763555438535,-500.0,0.00013226,2]
[394420141,1763555438545,-500.0,0.00013226,2]
[394420143,1763555438553,-500.0,0.00013226,2]
[394420145,1763555438563,-500.0,0.00013226,2]
[394420147,1763555438572,-32054.88275006,0.00013227,2]
[394420149,1763555438581,-9884.49896756,0.0001327,2]
[394420151,1763555438590,-288.54494126,0.00013369,2]
[394420153,1763555438599,-500.0,0.00013369,2]
[394420155,1763555438608,-536.8510284,0.00013369,2]
[394420157,1763555438618,-50000.0,0.0001337,2]
[394420159,1763555438627,-176.80549944,0.00013371,2]
[394420161,1763555438636,-500.0,0.00013371,2]
[394420163,1763555438646,-155.39006501,0.00013371,2]
[394420165,1763555438659,-157.8498372,0.00013371,2]
[394420167,1763555438668,-500.0,0.00013373,2]
[394420169,1763555438678,-359.05097354,0.00013373,2]
[394420171,1763555438687,-506.01992005,0.00013373,2]
[394420173,1763555438696,-500.0,0.00013373,2]
[394420175,1763555438705,-500.0,0.00013373,2]
[394420177,1763555438715,-503.65604025,0.00013373,2]
[394420179,1763555438724,-500.0,0.00013373,2]
[394420180,1763555438735,-500.0,0.00013373,2]
[394420182,1763555438745,-500.0,0.00013373,2]
[394420184,1763555438754,-500.0,0.00013373,2]
[394420187,1763555438764,-500.0,0.00013373,2]
[394420188,1763555438773,-500.0,0.00013373,2]
[394420190,1763555438783,-501.34505857,0.00013373,2]
[394420193,1763555438792,-518.39835129,0.00013373,2]
[394420194,1763555438802,-500.0,0.00013373,2]
[394420197,1763555438811,-500.0,0.00013373,2]
[394420199,1763555438821,-500.0,0.00013373,2]
[394420200,1763555438830,-500.0,0.00013373,2]
[394420202,1763555438840,-500.0,0.00013373,2]
[394420204,1763555438849,-500.0,0.00013373,2]
[394420206,1763555438859,-500.0,0.00013373,2]
[394420208,1763555438868,-170.75559957,0.00013373,2]
[394420211,1763555438878,-534.44770672,0.00013373,2]
[394420212,1763555438887,-500.0,0.00013373,2]
[394420215,1763555438896,-267.41789647,0.00013373,2]
[394420216,1763555438906,-231.35448524,0.00013373,2]
[394420218,1763555438915,-158.55699744,0.00013373,2]
[394420221,1763555438925,-500.0,0.00013373,2]
[394420222,1763555438934,-500.0,0.00013373,2]
[394420224,1763555438944,-382.90001677,0.00013373,2]
[394420227,1763555438954,-500.0,0.00013373,2]
[394420228,1763555438963,-500.0,0.00013373,2]
[394420230,1763555438972,-500.0,0.00013373,2]
[394420232,1763555438981,-500.0,0.00013373,2]
[394420234,1763555438991,-500.0,0.00013373,2]
[394420236,1763555439000,-500.0,0.00013373,2]
[394420239,1763555439009,-500.0,0.00013373,2]
[394420241,1763555439019,-500.0,0.00013373,2]
[394420243,1763555439029,-500.0,0.00013373,2]
[394420245,1763555439039,-500.0,0.00013373,2]
[394420247,1763555439049,-505.73670855,0.00013373,2]
[394420249,1763555439058,-500.0,0.00013373,2]
[394420251,1763555439067,-500.0,0.00013373,2]
[394420253,1763555439076,-500.0,0.00013373,2]
[394420255,1763555439086,-500.0,0.00013373,2]
[394420257,1763555439095,-263.70606165,0.00013373,2]
[394420258,1763555439105,-500.0,0.00013373,2]
[394420260,1763555439115,-500.0,0.00013373,2]
[394420262,1763555439126,-984.39,0.0001338,2]
[394420264,1763555439136,-500.0,0.00013396,2]
[394420266,1763555439147,-1959.0,0.00013396,2]
[394420268,1763555439157,-500.0,0.00013396,2]
[394420270,1763555439167,-500.0,0.00013396,2]
[394420272,1763555439176,-500.0,0.00013396,2]
[394420274,1763555439186,-151.0,0.00013396,2]
[394420276,1763555439195,-500.0,0.00013396,2]
[394420277,1763555439205,-261.865298,0.00013397,2]
[394420278,1763555439214,-261.865298,0.00013397,2]
[394420279,1763555439224,-261.865298,0.00013397,2]
[394420280,1763555439235,-261.865298,0.00013397,2]
[394420281,1763555439245,-261.865298,0.00013397,2]
[394420282,1763555439255,-261.865298,0.00013397,2]
[394420283,1763555439264,-261.865298,0.00013397,2]
[394420284,1763555439274,-261.865298,0.00013397,2]
[394420285,1763555439283,-261.865298,0.00013397,2]
[394420286,1763555439293,-261.865298,0.00013397,2]
[394420287,1763555439302,-261.865298,0.00013397,2]
[394420288,1763555439311,-261.865298,0.00013397,2]
[394420289,1763555439320,-155.255002,0.00013399,2]
[394420290,1763555439330,-151.0,0.000134,2]
[394420291,1763555439339,-500.0,0.00013423,2]
[394420293,1763555439349,-1959.0,0.00013423,2]
[394420295,1763555439358,-500.0,0.00013423,2]
[394420297,1763555439367,-500.0,0.00013423,2]
[394420298,1763555439376,-500.0,0.00013423,2]
[394420300,1763555439385,-254.3822629,0.00013423,2]
[394420302,1763555439394,-500.0,0.00013423,2]
[394420314,1763555439404,-500.0,0.00013451,2]
[394420316,1763555439509,-1959.0,0.00013451,2]
[394420318,1763555439518,-500.0,0.00013451,2]
[394420320,1763555439528,-500.0,0.00013451,2]
[394420322,1763555439537,-500.0,0.00013451,2]
[394420324,1763555439546,-254.08719922,0.00013451,2]
[394420326,1763555439555,-500.0,0.00013478,2]
[394420328,1763555439564,-1959.0,0.00013478,2]
[394420330,1763555439574,-500.0,0.00013478,2]
[394420332,1763555439583,-500.0,0.00013478,2]
[394420334,1763555439591,-500.0,0.00013478,2]
[394420336,1763555439601,-151.0,0.000135,2]
[394420338,1763555439610,-200.0,0.000135,2]
[394420340,1763555439620,-500.0,0.00013506,2]
[394420342,1763555439630,-1959.0,0.00013506,2]
[394420344,1763555439639,-500.0,0.00013506,2]
[394420346,1763555439653,-500.0,0.00013506,2]
[394420347,1763555439663,-500.0,0.00013506,2]
[394420349,1763555439672,-638.0,0.00013533,2]
[394420351,1763555439681,-1959.0,0.00013533,2]
[394420353,1763555439690,-500.0,0.00013533,2]
[394420355,1763555439700,-500.0,0.00013533,2]
[394420358,1763555439709,-500.0,0.00013533,2]
[394420360,1763555439719,-1959.0,0.0001356,2]
[394420362,1763555439729,-441.68803233,0.0001356,2]
[394420364,1763555439738,-500.0,0.0001356,2]
[394420366,1763555439748,-1959.0,0.00013588,2]
[394420368,1763555439757,-500.0,0.00013588,2]
[394420370,1763555439766,-1959.0,0.00013615,2]
[394420372,1763555439776,-500.0,0.00013615,2]
[394420374,1763555439785,-1959.0,0.00013643,2]
[394420376,1763555439794,-513.0,0.00013643,2]
[394420378,1763555439803,-500.0,0.00013645,2]
[394420380,1763555439812,-1959.0,0.0001367,2]
[394420382,1763555439821,-1959.0,0.00013697,2]
[394420384,1763555439830,-500.0,0.00013698,2]
[394420386,1763555439839,-500.0,0.00013698,2]
[394420388,1763555439848,-524.15073761,0.00013698,2]
[394420390,1763555439857,-500.0,0.00013698,2]
[394420392,1763555439867,-532.66965828,0.00013698,2]
[394420394,1763555439876,-500.0,0.00013698,2]
[394420396,1763555439885,-500.0,0.00013698,2]
[394420397,1763555439893,-500.0,0.00013698,2]
[394420399,1763555439904,-500.0,0.00013698,2]
[394420402,1763555439913,-500.0,0.00013698,2]
[394420403,1763555439922,-572.14017571,0.00013698,2]
[394420406,1763555439932,-500.0,0.00013698,2]
[394420408,1763555439941,-500.0,0.00013698,2]
[394420410,1763555439951,-500.0,0.00013698,2]
[394420412,1763555439962,-500.0,0.00013698,2]
[394420413,1763555439971,-500.0,0.00013698,2]
[394420416,1763555439981,-500.0,0.00013698,2]
[394420418,1763555439990,-500.0,0.00013698,2]
[394420419,1763555440000,-500.0,0.00013698,2]
[394420422,1763555440009,-500.0,0.00013698,2]
[394420424,1763555440019,-500.0,0.00013698,2]
[394420426,1763555440028,-500.0,0.00013698,2]
[394420427,1763555440039,-500.0,0.00013698,2]
[394420429,1763555440049,-500.0,0.00013698,2]
[394420431,1763555440062,-500.0,0.00013698,2]
[394420433,1763555440071,-463.26416661,0.00013698,2]
[394420435,1763555440081,-1000.0,0.00013698,2]
[394420437,1763555440091,-1000.0,0.00013698,2]
[394420439,1763555440100,-1000.0,0.00013698,2]
[394420441,1763555440109,-1000.0,0.00013698,2]
[394420442,1763555440118,-1000.0,0.00013698,2]
[394420443,1763555440127,-1000.0,0.00013698,2]
[394420444,1763555440137,-1000.0,0.00013698,2]
[394420445,1763555440147,-1008.43444966,0.00013698,2]
[394420446,1763555440157,-2788.421631,0.00013699,2]
[394420448,1763555440166,-978.942055,0.00013699,2]
[394420449,1763555440176,-151.000082,0.00013699,2]
[394420450,1763555440185,-151.0,0.00013699,2]
[394420451,1763555440194,-151.0,0.00013699,2]
[394420452,1763555440204,-3294.7071618,0.00013699,2]
[394420454,1763555440214,-5877.4081399,0.00013699,2]
[394420455,1763555440223,-151.0,0.00013699,2]
[394420456,1763555440233,-151.0,0.00013699,2]
[394420457,1763555440243,-151.0,0.00013699,2]
[394420458,1763555440253,-151.0,0.00013699,2]
[394420459,1763555440262,-240.14827,0.00013699,2]
[394420460,1763555440272,-151.0,0.00013699,2]
[394420461,1763555440282,-162.169979,0.00013699,2]
[394420462,1763555440291,-151.0,0.000137,2]
[394420463,1763555440300,-151.0,0.000137,2]
[394420464,1763555440310,-1959.0,0.00013725,2]
[394420465,1763555440320,-1959.0,0.00013752,2]
[394420466,1763555440330,-1959.0,0.0001378,2]
[394420467,1763555440339,-151.0,0.000138,2]
[394420468,1763555440349,-151.0,0.000138,2]
[394420469,1763555440358,-1959.0,0.00013807,2]
[394420470,1763555440368,-1959.0,0.00013834,2]
[394420471,1763555440377,-1959.0,0.00013862,2]
[394420472,1763555440386,-1959.0,0.00013889,2]
[394420473,1763555440396,-151.0,0.000139,2]
[394420474,1763555440405,-151.0,0.000139,2]
[394420476,1763555440415,-1959.0,0.00013917,2]
[394420477,1763555440425,-500.0,0.00013919,2]
[394420479,1763555440434,-1000.0,0.00013921,2]
[394420480,1763555440444,-780.08366749,0.00013921,2]
[394420481,1763555440453,-1000.0,0.00013921,2]
[394420482,1763555440462,-164.22872862,0.00013921,2]
[394420483,1763555440471,-1000.0,0.00013921,2]
[394420484,1763555440480,-1000.0,0.00013921,2]
[394420485,1763555440489,-1000.0,0.00013921,2]
[394420486,1763555440498,-1013.20103779,0.00013921,2]
[394420487,1763555440507,-1000.0,0.00013921,2]
[394420488,1763555440516,-502.05566359,0.00013921,2]
[394420489,1763555440525,-1000.0,0.00013921,2]
[394420490,1763555440534,-1000.0,0.00013921,2]
[394420491,1763555440544,-1000.0,0.00013921,2]
[394420492,1763555440553,-581.70931609,0.00013921,2]
[394420493,1763555440561,-1000.0,0.00013921,2]
[394420494,1763555440570,-1000.0,0.00013921,2]
[394420495,1763555440579,-1000.0,0.00013921,2]
[394420496,1763555440588,-1000.0,0.00013921,2]
[394420497,1763555440597,-1000.0,0.00013921,2]
[394420498,1763555440606,-1000.0,0.00013921,2]
[394420499,1763555440615,-1000.0,0.00013921,2]
[394420500,1763555440624,-1000.0,0.00013921,2]
[394420501,1763555440632,-1000.0,0.00013921,2]
[394420502,1763555440641,-1000.0,0.00013921,2]
[394420503,1763555440653,-1000.0,0.00013921,2]
[394420504,1763555440663,-505.49963257,0.00013921,2]
[394420505,1763555440672,-825.78165932,0.00013921,2]
[394420506,1763555440681,-1000.0,0.00013921,2]
[394420507,1763555440691,-1000.0,0.00013921,2]
[394420508,1763555440701,-1000.0,0.00013921,2]
[394420509,1763555440711,-1000.0,0.00013921,2]
[394420510,1763555440720,-1000.0,0.00013921,2]
[394420511,1763555440731,-1000.0,0.00013921,2]
[394420512,1763555440740,-448.06713993,0.00013921,2]
[394420513,1763555440749,-1959.0,0.00013944,2]
[394420514,1763555440758,-1959.0,0.00013971,2]
[394420515,1763555440767,-1916.01941164,0.00013981,2]
[394420516,1763555440776,-1959.0,0.00013999,2]
[394420517,1763555440785,-5198.56556324,0.00014,2]
[394420518,1763555440794,-151.0,0.00014,2]
[394420519,1763555440803,-7537.20454314,0.00014,2]
[394420520,1763555440812,-151.0,0.00014,2]
[394420521,1763555440822,-151.0,0.00014,2]
[394420522,1763555440830,-5100.07724235,0.00014,2]
[394420523,1763555440840,-1974.40566231,0.00014026,2]
[394420524,1763555440849,-151.0,0.000141,2]
[394420525,1763555440858,-151.0,0.000141,2]
[394420526,1763555440868,-500.0,0.00014193,2]
[394420527,1763555440877,-151.0,0.000142,2]
[394420528,1763555440886,-151.0,0.000143,2]
[394420529,1763555440895,-151.0,0.000143,2]
[394420530,1763555440905,-151.0,0.000144,2]
[394420531,1763555440914,-151.0,0.000144,2]
[394420532,1763555440924,-151.0,0.000144,2]
[394420533,1763555440933,-500.0,0.00014436,2]
[394420534,1763555440942,-530.23893886,0.00014436,2]
[394420535,1763555440951,-500.0,0.00014467,2]
[394420536,1763555440962,-261.865298,0.00014468,2]
[394420537,1763555440971,-261.865298,0.00014468,2]
[394420538,1763555440980,-261.865298,0.00014468,2]
[394420539,1763555440990,-261.865298,0.00014468,2]
[394420540,1763555440999,-414.92008594,0.00014468,2]
[394420541,1763555441008,-1517.31851309,0.00014468,2]
[394420542,1763555441017,-1500.0,0.00014468,2]
[394420543,1763555441026,-1500.0,0.00014468,2]
[394420544,1763555441035,-510.77623363,0.00014468,2]
[394420545,1763555441044,-1500.0,0.00014468,2]
[394420546,1763555441055,-940.78990971,0.00014468,2]
[394420547,1763555441066,-1500.0,0.00014468,2]
[394420548,1763555441075,-1500.0,0.00014468,2]
[394420549,1763555441084,-1500.0,0.00014468,2]
[394420550,1763555441093,-1500.0,0.00014468,2]
[394420551,1763555441102,-1500.0,0.00014468,2]
[394420552,1763555441112,-845.92527344,0.00014468,2]
[394420553,1763555441120,-1500.0,0.00014468,2]
[394420554,1763555441130,-1501.77337171,0.00014468,2]
[394420555,1763555441150,-1500.0,0.00014468,2]
[394420556,1763555441159,-1500.0,0.00014468,2]
[394420557,1763555441168,-1500.0,0.00014468,2]
[394420558,1763555441178,-1111.89646868,0.00014468,2]
[394420559,1763555441187,-1500.0,0.00014468,2]
[394420560,1763555441196,-1500.0,0.00014468,2]
[394420561,1763555441206,-1500.0,0.00014468,2]
[394420562,1763555441215,-1500.0,0.00014468,2]
[394420563,1763555441224,-1500.0,0.00014468,2]
[394420564,1763555441233,-725.52266136,0.00014468,2]
[394420565,1763555441243,-1500.0,0.00014468,2]
[394420566,1763555441252,-151.0,0.000145,2]
[394420567,1763555441261,-151.0,0.000145,2]
[394420568,1763555441271,-420.0,0.00014501,2]
[394420569,1763555441280,-420.0,0.00014501,2]
[394420570,1763555441289,-420.0,0.00014501,2]
[394420571,1763555441298,-304.0,0.00014501,2]
[394420572,1763555441307,-1680.0,0.00014549,2]
[394420573,1763555441316,-151.0,0.000146,2]
[394420574,1763555441326,-151.0,0.000146,2]
[394420575,1763555441335,-1680.0,0.00014657,2]
[394420576,1763555441345,-151.0,0.000147,2]
[394420577,1763555441355,-151.0,0.000147,2]
[394420578,1763555441365,-151.0,0.000147,2]
[394420579,1763555441374,-1000.0,0.00014734,2]
[394420580,1763555441383,-1000.0,0.00014734,2]
[394420581,1763555441393,-1000.0,0.00014734,2]
[394420582,1763555441403,-1000.0,0.00014734,2]
[394420583,1763555441412,-1000.0,0.00014734,2]
[394420584,1763555441421,-1000.0,0.00014734,2]
[394420585,1763555441431,-1000.0,0.00014734,2]
[394420586,1763555441440,-1000.0,0.00014734,2]
[394420587,1763555441449,-1146.27147923,0.00014734,2]
[394420588,1763555441458,-6933.91976297,0.00014734,2]
[394420589,1763555441467,-163.15648338,0.00014734,2]
[394420590,1763555441476,-500.0,0.00014741,2]
[394420591,1763555441485,-13022.79762429,0.00014776,2]
[394420592,1763555441494,-7190.4747942,0.00014789,2]
[394420593,1763555441503,-162.57104211,0.00014844,2]
[394420594,1763555441512,-307.89170148,0.00014846,2]
[394420595,1763555441521,-200.0,0.00014846,2]
[394420596,1763555441530,-151.0,0.00014847,2]
[394420597,1763555441539,-261.865298,0.00014847,2]
[394420598,1763555441547,-261.865298,0.00014847,2]
[394420599,1763555441557,-261.865298,0.00014847,2]
[394420600,1763555441566,-261.865297,0.00014847,2]
[394420601,1763555441575,-867239.19788943,0.00014847,2]
[394420602,1763555441593,-22760.80211057,0.00014847,2]
[394420603,1763555441602,-160.0,0.00014889,2]
[394420604,1763555441611,-591.43211028,0.000149,2]
[394420605,1763555441620,-2891.50583401,0.00014926,2]
[394420606,1763555441629,-2023.14264601,0.00014979,2]
[394420607,1763555441639,-1012.85744527,0.00015,2]
[394420608,1763555441648,-553.03157674,0.00015,2]
[394420609,1763555441661,-386.57621875,0.0001501,2]
[394420610,1763555441670,-500.0,0.00015015,2]
[394420611,1763555441679,-415.15607661,0.00015016,2]
[394420612,1763555441688,-2035.51572243,0.00015016,2]
[394420613,1763555441698,-929.59951479,0.00015016,2]
[394420614,1763555441791,-504.80813494,0.00015016,2]
[394420615,1763555441800,-2000.0,0.00015016,2]
[394420616,1763555441809,-616.54856462,0.00015016,2]
[394420617,1763555441818,-2000.0,0.00015016,2]
[394420618,1763555441827,-2000.0,0.00015016,2]
[394420619,1763555441836,-2000.0,0.00015016,2]
[394420620,1763555441845,-2000.0,0.00015016,2]
[394420621,1763555441853,-2006.33799268,0.00015016,2]
[394420622,1763555441862,-2000.0,0.00015016,2]
[394420623,1763555441870,-2000.0,0.00015016,2]
[394420624,1763555441879,-2000.0,0.00015016,2]
[394420625,1763555441888,-2000.0,0.00015016,2]
[394420626,1763555441898,-2000.0,0.00015016,2]
[394420627,1763555441907,-2000.0,0.00015016,2]
[394420628,1763555441916,-2000.0,0.00015016,2]
[394420629,1763555441926,-10074.51239496,0.00015097,2]
[394420630,1763555441938,-41.80120694,0.00015097,2]
[394420631,1763555441947,-1385.98313396,0.00015097,2]
[394420632,1763555442035,-380.89832334,0.00015097,2]
[394420633,1763555442044,-563.62909164,0.00015181,2]
[394420639,1763555442866,-3e-08,0.00015181,2]
[394420657,1763555556958,169.6479378,6.7e-05,2]
[394420658,1763555641042,-382.28675622,0.00013051,2]
[394420659,1763555644977,-279.42315042,0.00013051,2]
[394420660,1763555648845,-257.1029938,0.00013051,2]
[394420661,1763555652908,-444.07287728,0.0001292,2]
[394420662,1763555652931,-58.07046478,0.00013051,2]
[394420663,1763555686612,-128.8994187,0.00013051,2]
[394420664,1763555686636,-134.3797609,0.00013125,2]
[394420665,1763555696135,-29.06156065,0.00013125,2]
[394420666,1763555696157,-163.44132153,0.00013138,2]
[394420667,1763555696179,-11.00420309,0.0001315,2]
[394420668,1763555700857,-263.2791796,0.00013124,2]
[394420669,1763555702102,3948.6051072,0.00012268,2]
[394420670,1763555702395,897.0,0.00012993,2]
[394420671,1763555702422,-156.24735338,0.00013124,2]
[394420672,1763555703933,-152.80392035,0.00013124,2]
[394420673,1763555709547,-163.7345188,0.00013124,2]
[394420674,1763555717670,160.93502787,0.00012993,2]
[394420675,1763555725537,160.93502787,0.00012993,2]
[394420676,1763555734613,512.25578312,0.00015793,7]
[394420677,1763555738875,2565.29044696,0.00015793,7]
[394420678,1763555740722,160.93502787,0.00012993,2]
[394420679,1763555748810,160.93502787,0.00012993,2]
[394420680,1763555763947,160.93502787,0.00012993,2]
[394420681,1763555771739,160.93502787,0.00012993,2]
[394420682,1763555786835,160.93502787,0.00012993,2]
[394420683,1763555794673,160.93502787,0.00012993,2]
[394420684,1763555809829,160.93502787,0.00012993,2]
[394420685,1763555818247,160.93502787,0.00012993,2]